bitfinex/quotes_SOLUSD_20240725
["timestamp","ask_amount","ask_price","bid_price","bid_amount"]
[1721918762545,53.28,171.34,171.2,20.4431]
[1721918762780,53.28,171.34,171.14,21.7646]
[1721918762781,5.8405,171.22,171.17,14.6052]
[1721918763084,16.2074,171.32,171.17,20.4473]
[1721918763253,20.0,171.31,171.14,27.6076]
[1721918763444,5.8408,171.21,171.14,21.7646]
[1721918763652,5.8412,171.2,171.15,5.8428]
[1721918763970,5.8418,171.18,171.13,20.4517]
[1721918764357,5.8411,171.21,171.14,5.8431]
[1721918764672,14.5994,171.24,171.14,5.8431]
[1721918764980,5.8442,171.11,171.05,5.8459]
[1721918765285,5.844,171.12,171.06,5.8457]
[1721918765475,5.8436,171.13,171.07,5.8455]
[1721918765683,14.6046,171.18,171.05,14.6147]
[1721918765864,20.0,171.12,171.05,14.6147]
[1721918766179,5.8459,171.06,171.01,14.6182]
[1721918766348,5.8459,171.06,170.97,6.3631]
[1721918766349,5.8462,171.05,170.99,5.8479]
[1721918766552,5.8459,171.06,171.0,5.8478]
[1721918766765,5.8459,171.06,171.01,5.8475]
[1721918766973,5.8454,171.08,171.0,14.6198]
[1721918767180,20.0,171.07,171.01,5.8473]
[1721918767483,20.0,171.07,171.03,5.8468]
[1721918767658,31.763,171.2,171.0,34.4493252]
[1721918767853,5.8428,171.15,171.09,14.6121]
[1721918768070,46.3665,171.2,171.09,14.6121]
[1721918768288,14.6035,171.2,171.09,14.6121]
[1721918768580,14.6058,171.17,171.05,14.6148]
[1721918768778,5.872,171.23,171.09,33.28]
[1721918768980,14.5994,171.24,171.14,5.8429]
[1721918769207,5.841,171.21,171.14,5.8429]
[1721918769503,5.8412,171.2,171.15,14.607]
[1721918769684,14.6002,171.23,171.11,14.6096]
[1721918769889,14.6002,171.23,171.08,6.3152]
[1721918769890,5.8425,171.16,171.1,5.8443]
[1721918770075,5.8429,171.15,171.08,6.3152]
[1721918770282,5.8423,171.17,171.12,5.8438]
[1721918770494,29.1984,171.25,171.1,20.4555]
[1721918770495,5.8429,171.15,171.1,20.4555]
[1721918770892,5.8429,171.15,171.06,16.502]
[1721918770893,14.6045,171.19,171.06,31.1159]
[1721918771102,5.8441,171.12,171.06,36.9614]
[1721918771403,39.152,171.26,171.09,14.6116]
[1721918771583,14.6029,171.2,171.09,14.6116]
[1721918771789,20.0,171.19,171.09,14.6116]
[1721918772002,5.8435,171.13,171.08,5.845]
[1721918772306,5.8438,171.12,171.06,22.3475]
[1721918772494,20.0,171.11,170.99,16.404]
[1721918772696,5.8466,171.04,170.99,16.404]
[1721918772907,14.6116,171.1,170.99,16.404]
[1721918773075,20.0,171.11,171.02,5.8469]
[1721918773282,20.0,171.13,171.02,5.8471]
[1721918773586,20.0,171.13,171.02,14.6173]
[1721918773797,5.8445,171.1,171.04,5.8462]
[1721918774007,20.0,171.09,171.05,5.8462]
[1721918774182,20.0,171.09,171.04,20.4619]
[1721918774387,20.0,171.09,171.04,14.6157]
[1721918774586,5.8457,171.07,171.02,5.8472]
[1721918774908,5.847,171.03,170.99,16.404]
[1721918775111,5.8466,171.04,170.99,16.404]
[1721918775285,5.8466,171.04,170.99,22.2521]
[1721918775490,5.8452,171.08,171.02,5.8469]
[1721918775707,20.0,171.13,170.99,16.404]
[1721918776192,20.0,171.14,171.03,14.617]
[1721918776399,5.8455,171.07,171.03,14.617]
[1721918776598,34.6086,171.14,171.04,5.8465]
[1721918776907,34.6086,171.14,171.02,5.8471]
[1721918777120,5.8452,171.08,171.03,5.8466]
[1721918777300,34.6086,171.14,171.02,14.6175]
[1721918777487,20.0,171.14,171.02,14.6175]
[1721918777689,20.0,171.14,170.99,31.0246]
[1721918777924,14.6124,171.09,170.99,31.0246]
[1721918778204,5.8468,171.04,170.99,22.2521]
[1721918778609,5.8469,171.03,170.99,16.404]
[1721918778807,5.8469,171.03,170.99,22.2522]
[1721918778984,5.8478,171.01,170.97,21.0288]
[1721918779190,29.2288,171.07,170.93,30.2252]
[1721918779390,5.8476,171.01,170.96,5.8492]
[1721918779607,5.8473,171.02,170.97,5.8489]
[1721918779789,5.8473,171.02,170.95,14.6233]
[1721918779790,20.0,171.08,170.98,14.6214]
[1721918779990,5.8476,171.01,170.96,5.8492]
[1721918780713,5.8473,171.02,170.96,5.8492]
[1721918781011,20.0,171.08,171.02,5.8471]
[1721918781302,5.8452,171.08,171.03,5.8466]
[1721918781696,14.6081,171.14,170.96,1.16942945]
[1721918781886,5.8445,171.1,171.06,5.8458]
[1721918782088,2.27549712,171.16,171.0,1.16919243]
[1721918782288,14.6069,171.16,171.05,14.6148]
[1721918782506,5.8449,171.09,171.05,14.6148]
[1721918782692,5.8445,171.1,171.05,20.4609]
[1721918783694,5.8442,171.11,171.06,5.8458]
[1721918783908,14.6069,171.16,171.06,5.8458]
[1721918784094,20.0,171.15,171.05,20.4609]
[1721918784291,5.8437,171.13,171.07,5.8454]
[1721918784515,2.27109039,171.18,171.09,5.8447]
[1721918784516,5.8431,171.14,171.09,5.8447]
[1721918784816,16.87619039,171.18,171.08,14.6129]
[1721918785012,5.8435,171.13,171.08,20.4581]
[1721918785207,5.8442,171.11,171.06,5.8457]
[1721918785393,14.6072,171.15,171.01,14.6188]
[1721918785595,5.8446,171.1,171.04,5.8463]
[1721918785925,5.8445,171.1,171.05,5.8461]
[1721918786214,5.8456,171.07,171.03,14.6165]
[1721918786387,29.2138,171.16,171.03,14.6165]
[1721918786593,20.0,171.15,171.03,14.6165]
[1721918787791,5.8445,171.1,171.05,5.8462]
[1721918787990,20.0,171.15,171.03,14.6165]
[1721918788214,5.8444,171.11,171.05,5.846]
[1721918788421,14.6092,171.13,171.03,14.6165]
[1721918788604,20.0,171.12,171.03,14.6165]
[1721918788997,5.8445,171.1,171.05,5.8461]
[1721918789418,5.8453,171.08,171.02,5.8469]
[1721918789616,20.0,171.12,171.01,14.6183]
[1721918789795,14.6112,171.11,171.01,14.6183]
[1721918789995,20.0,171.15,171.0,6.3519]
[1721918789996,14.613,171.08,171.0,6.3519]
[1721918790319,20.0,171.07,170.99,5.8481]
[1721918790500,20.0,171.07,170.98,15.2468]
[1721918790699,5.8469,171.03,170.98,21.0951]
[1721918790902,20.0,171.07,170.96,14.6226]
[1721918791219,6.3446,171.09,170.95,6.6506]
[1721918791220,5.848,171.0,170.95,21.2746]
[1721918791395,5.8479,171.0,170.95,12.5002]
[1721918791602,14.618,171.03,170.95,6.6506]
[1721918791603,5.8484,170.99,170.95,6.6506]
[1721918791908,14.618,171.03,170.95,6.6506]
[1721918792113,20.0,171.02,170.95,6.6506]
[1721918792319,20.0,171.02,170.92,14.6266]
[1721918792620,5.8491,170.97,170.92,5.8503]
[1721918793016,5.8487,170.98,170.92,20.4762]
[1721918793194,20.0,171.02,170.9,0.7987949]
[1721918793389,6.3446,171.09,170.98,5.8485]
[1721918793390,20.0,171.08,170.98,5.8485]
[1721918793597,5.8468,171.04,170.98,5.8485]
[1721918793800,14.615,171.06,170.97,20.4708]
[1721918793801,5.8473,171.02,170.97,20.4708]
[1721918794129,6.3446,171.09,170.9,31.2239949]
[1721918794130,14.6078,171.15,171.05,5.8459]
[1721918794336,5.8455,171.08,171.03,5.8466]
[1721918794507,5.8455,171.07,171.02,20.4651]
[1721918795107,14.6123,171.09,170.97,14.6216]
[1721918795309,5.8458,171.07,170.93,1.16944908]
[1721918795508,29.2191,171.13,171.0,14.6197]
[1721918795922,5.8469,171.03,170.98,5.8485]
[1721918796128,5.8463,171.05,171.0,5.8478]
[1721918796338,20.0,171.04,171.01,5.8474]
[1721918796522,20.0,171.05,171.01,14.6184]
[1721918796719,20.0,171.07,171.03,5.8466]
[1721918796914,5.8459,171.06,171.01,20.4657]
[1721918797112,12.63952526,171.16,171.0,22.0872]
[1721918797310,5.8445,171.11,171.05,5.8461]
[1721918797630,15.7508,171.18,171.0,22.0872]
[1721918797631,29.2122,171.17,171.0,22.0872]
[1721918797814,14.6055,171.17,171.05,14.6148]
[1721918798009,14.6055,171.17,171.06,5.8456]
[1721918798208,5.8435,171.13,171.07,5.8454]
[1721918798427,5.8432,171.14,171.08,5.8452]
[1721918798733,2.90257883,171.18,171.05,14.6155]
[1721918798933,14.6068,171.16,171.06,5.8456]
[1721918799106,5.8451,171.09,171.04,5.8463]
[1721918799436,14.6086,171.14,171.02,14.6179]
[1721918799616,14.6086,171.14,171.03,5.8466]
[1721918799817,5.8451,171.09,171.03,5.8466]
[1721918800338,5.8451,171.09,171.04,5.8465]
[1721918800726,5.8461,171.06,171.02,14.6179]
[1721918800922,5.8455,171.07,171.02,20.465]
[1721918801312,5.8464,171.05,171.01,5.8475]
[1721918801521,5.8459,171.06,171.01,5.8475]
[1721918801740,14.6111,171.11,171.01,5.8475]
[1721918802033,14.6129,171.09,170.98,14.6209]
[1721918802235,14.6129,171.09,170.95,22.2844]
[1721918802236,14.6144,171.07,170.95,36.9083]
[1721918802438,20.0,171.06,170.95,36.9083]
[1721918802611,5.8483,170.99,170.95,22.2844]
[1721918802813,20.0,171.08,170.95,16.088]
[1721918802814,5.8486,170.98,170.95,16.088]
[1721918803038,14.6181,171.03,170.91,6.2335]
[1721918803222,5.8493,170.96,170.91,12.0843]
[1721918803413,5.8497,170.95,170.91,6.2335]
[1721918803616,14.6196,171.01,170.91,6.2335]
[1721918803818,20.0,171.0,170.91,6.2335]
[1721918804023,20.0,171.0,170.9,0.7987949]
[1721918804024,45.0,170.99,170.9,0.7987949]
[1721918804220,5.8495,170.96,170.9,0.7987949]
[1721918804421,20.0,170.98,170.9,0.7987949]
[1721918804422,20.0,170.95,170.92,14.6264]
[1721918804641,5.8496,170.96,170.9,6.6500949]
[1721918804838,65.0,170.95,170.9,0.7987949]
[1721918805039,70.8497,170.95,170.9,0.7987949]
[1721918805243,65.0,170.95,170.9,15.4264949]
[1721918805733,65.0,170.95,170.9,0.7987949]
[1721918806545,5.851,170.91,170.9,0.7987949]
[1721918806836,25.851,170.91,170.9,0.7987949]
[1721918807944,40.4785,170.91,170.9,0.7987949]
[1721918809028,20.0,170.91,170.9,0.7987949]
[1721918809232,25.851,170.91,170.9,0.7987949]
[1721918810145,25.851,170.91,170.9,9.49e-05]
[1721918810321,14.6294,170.89,170.79,5.8551]
[1721918810524,14.6294,170.89,170.78,14.6386]
[1721918810525,5.8531,170.85,170.78,14.6386]
[1721918810845,20.0,170.84,170.8,5.8545]
[1721918811247,20.0,170.84,170.78,14.6386]
[1721918811460,20.0,170.85,170.81,5.8541]
[1721918811745,20.0,170.86,170.82,5.854]
[1721918811949,20.0,170.86,170.82,14.6346]
[1721918812133,5.8541,170.82,170.77,6.5602]
[1721918812335,5.8538,170.83,170.77,12.4157]
[1721918812528,14.6318,170.87,170.77,21.199]
[1721918812742,5.8541,170.82,170.77,21.199]
[1721918813043,5.8537,170.83,170.78,5.8553]
[1721918813244,20.0,170.82,170.78,5.8553]
[1721918813560,20.0,170.82,170.77,27.0547]
[1721918813721,20.0,170.82,170.76,15.1039]
[1721918813922,5.8554,170.79,170.74,14.6419]
[1721918814123,5.8548,170.8,170.74,20.4985]
[1721918814332,5.8548,170.8,170.74,14.6419]
[1721918814737,5.8551,170.79,170.74,20.4985]
[1721918814959,5.8551,170.79,170.74,14.6419]
[1721918815132,14.6353,170.82,170.73,0.7987949]
[1721918815329,5.8555,170.78,170.73,0.7987949]
[1721918815527,20.0,170.81,170.73,0.7987949]
[1721918815743,5.8559,170.77,170.73,0.7987949]
[1721918816047,20.0,170.81,170.73,0.7987949]
[1721918816048,14.6379,170.79,170.73,0.7987949]
[1721918816240,5.8564,170.76,170.73,0.7987949]
[1721918816445,25.8555,170.78,170.73,0.7987949]
[1721918816747,20.0,170.78,170.73,0.7987949]
[1721918816958,49.273,170.81,170.73,0.7987949]
[1721918817153,5.8568,170.74,170.73,9.49e-05]
[1721918817340,5.8568,170.74,170.66,6.2544]
[1721918817341,34.6421,170.74,170.66,6.2544]
[1721918817528,25.8575,170.73,170.66,6.2544]
[1721918817725,25.8575,170.73,170.66,26.7628]
[1721918817726,5.8575,170.72,170.66,26.7628]
[1721918818046,20.0,170.73,170.66,20.9033]
[1721918818047,25.8579,170.71,170.66,20.9033]
[1721918818221,20.0,170.73,170.66,6.2544]
[1721918818427,20.0,170.73,170.62,30.6698]
[1721918818624,5.8592,170.67,170.62,16.0182]
[1721918819049,5.8588,170.69,170.62,21.8791]
[1721918819251,20.0,170.68,170.62,16.0182]
[1721918819458,5.8595,170.67,170.62,16.0182]
[1721918819940,5.8596,170.66,170.62,16.0182]
[1721918820137,20.0,170.68,170.62,16.0182]
[1721918820343,2.8636456,170.74,170.62,45.3229]
[1721918820546,2.8636456,170.74,170.62,16.0182]
[1721918820849,20.0,170.76,170.62,16.0182]
[1721918821050,2.85088669,170.76,170.67,14.6478]
[1721918821253,5.8575,170.72,170.67,14.6478]
[1721918821444,5.8572,170.73,170.67,20.5069]
[1721918821627,5.8571,170.74,170.67,14.6478]
[1721918821966,5.855,170.8,170.68,1.17179998]
[1721918822266,49.2666,170.85,170.7,14.6449]
[1721918822426,5.8579,170.71,170.65,5.8596]
[1721918822625,14.6404,170.76,170.64,5.8602]
[1721918822853,29.2666,170.85,170.63,6.3738]
[1721918823041,35.69819355,170.86,170.75,5.8562]
[1721918823272,5.8564,170.76,170.7,5.8581]
[1721918823512,5.8564,170.76,170.63,6.3738]
[1721918823513,20.0,170.79,170.63,6.3738]
[1721918823855,5.8586,170.69,170.63,12.2342]
[1721918824057,5.8582,170.7,170.63,6.3738]
[1721918824269,5.86,170.65,170.63,6.3738]
[1721918824486,5.8596,170.66,170.63,6.3738]
[1721918824771,25.8601,170.65,170.62,16.0182]
[1721918824972,5.8606,170.63,170.62,16.0182]
[1721918825273,20.0,170.63,170.59,5.8619]
[1721918825441,14.6444,170.72,170.59,14.6542]
[1721918825642,5.859,170.68,170.58,6.5812]
[1721918825866,20.0,170.67,170.62,14.6523]
[1721918826066,16.0182,170.81,170.58,40.65]
[1721918826271,1.01900872,170.93,170.84,5.8534]
[1721918826463,5.8511,170.91,170.84,14.6327]
[1721918826764,5.8511,170.91,170.71,40.65]
[1721918826765,14.6258,170.94,170.79,14.6371]
[1721918826968,5.8522,170.88,170.81,5.8543]
[1721918829574,5.8521,170.88,170.8,31.0328]
[1721918829870,5.8514,170.9,170.84,5.8532]
[1721918830069,5.8514,170.9,170.82,5.8538]
[1721918830276,5.8518,170.89,170.82,5.8538]
[1721918830457,5.8518,170.89,170.83,5.8536]
[1721918830650,14.6244,170.95,170.8,31.0328]
[1721918830651,5.8523,170.88,170.81,5.8542]
[1721918830857,5.8524,170.87,170.8,31.0328]
[1721918831063,14.6271,170.92,170.8,31.0328]
[1721918831370,14.6271,170.92,170.77,6.2593]
[1721918831371,5.8532,170.85,170.77,6.2593]
[1721918831561,5.8534,170.84,170.77,6.2593]
[1721918831758,14.6309,170.88,170.77,12.1149]
[1721918832077,14.6309,170.88,170.77,6.2593]
[1721918832285,5.8548,170.8,170.74,21.2386]
[1721918832570,14.6331,170.85,170.72,21.0297]
[1721918832774,5.8557,170.78,170.72,6.3864]
[1721918832977,20.0,170.84,170.71,5.8578]
[1721918833165,14.6358,170.82,170.69,5.8582]
[1721918833468,14.6382,170.79,170.68,30.1076]
[1721918833678,14.6382,170.79,170.66,6.3864]
[1721918833856,20.0,170.78,170.66,6.3864]
[1721918834058,5.8578,170.72,170.66,6.3864]
[1721918834266,14.6407,170.76,170.61,15.4608]
[1721918834267,5.8586,170.69,170.63,5.8603]
[1721918834463,14.6407,170.76,170.63,5.8605]
[1721918834775,20.0,170.75,170.63,5.8605]
[1721918835071,14.6407,170.76,170.64,14.6502]
[1721918835268,20.0,170.75,170.64,14.6502]
[1721918835574,5.8572,170.73,170.67,5.8592]
[1721918836078,5.8576,170.72,170.64,14.6502]
[1721918836271,5.858,170.71,170.64,20.5103]
[1721918836474,14.6441,170.72,170.61,15.4608]
[1721918836777,5.8595,170.67,170.61,21.3219]
[1721918836976,14.6441,170.72,170.6,6.3634]
[1721918837178,20.0,170.71,170.6,6.3634]
[1721918837662,5.8599,170.65,170.6,6.3634]
[1721918837866,5.8613,170.62,170.6,6.3634]
[1721918838262,20.0,170.71,170.6,6.3634]
[1721918838454,5.8607,170.63,170.6,6.3634]
[1721918838652,5.8603,170.64,170.6,6.3634]
[1721918838971,5.8599,170.66,170.6,6.3634]
[1721918839183,14.6462,170.7,170.6,6.3634]
[1721918839352,5.8599,170.66,170.6,12.225]
[1721918839683,20.0,170.71,170.6,6.3634]
[1721918839975,2.91053478,170.72,170.62,14.6516]
[1721918840167,5.8589,170.69,170.63,5.8603]
[1721918840374,14.6446,170.72,170.6,6.3634]
[1721918840571,5.8596,170.66,170.6,12.2247]
[1721918840873,5.8596,170.66,170.61,5.8613]
[1721918841079,5.8596,170.66,170.6,12.225]
[1721918841291,5.8604,170.64,170.6,6.3634]
[1721918841457,29.2854,170.74,170.6,6.3634]
[1721918841458,32.16935719,170.74,170.6,6.3634]
[1721918841660,14.6489,170.67,170.6,6.3634]
[1721918842573,29.2923,170.7,170.56,15.4556949]
[1721918842574,5.8617,170.6,170.56,0.7987949]
[1721918842868,5.8621,170.59,170.56,0.7987949]
[1721918843296,5.8626,170.58,170.56,0.7987949]
[1721918843587,14.6524,170.62,170.56,0.7987949]
[1721918843588,5.8626,170.57,170.56,0.7987949]
[1721918843884,6.12097194,170.69,170.66,14.6486]
[1721918844058,14.6404,170.76,170.66,20.508]
[1721918844257,14.6404,170.76,170.63,6.4607]
[1721918844569,40.65,170.78,170.63,6.4607]
[1721918844570,5.8599,170.66,170.63,6.4607]
[1721918844774,95.8063,170.74,170.56,7.2594949]
[1721918844974,5.8606,170.63,170.58,5.8621]
[1721918845281,95.8063,170.74,170.56,21.9167949]
[1721918845282,14.651,170.64,170.56,7.2594949]
[1721918845461,5.8623,170.58,170.56,7.2594949]
[1721918845665,14.651,170.64,170.56,0.7987949]
[1721918845666,5.862,170.59,170.56,0.7987949]
[1721918845983,14.651,170.64,170.56,0.7987949]
[1721918846378,5.8626,170.57,170.56,0.7987949]
[1721918848160,25.8626,170.57,170.56,0.7987949]
[1721918851181,29.2893,170.72,170.56,0.7987949]
[1721918851364,14.6458,170.7,170.57,14.6566]
[1721918852073,5.8601,170.65,170.57,14.6566]
[1721918852276,5.8611,170.62,170.57,14.6566]
[1721918852475,29.2968,170.67,170.56,0.7987949]
[1721918852676,14.6511,170.64,170.56,0.7987949]
[1721918852863,2.82480136,170.72,170.63,5.8604]
[1721918853067,14.6416,170.75,170.66,5.8595]
[1721918853376,72.34601874,170.78,170.64,14.6505]
[1721918853584,72.34601874,170.78,170.57,6.6005]
[1721918853875,14.6396,170.77,170.68,5.8588]
[1721918854189,14.6396,170.77,170.66,14.6484]
[1721918854190,8.89321874,170.78,170.66,14.6484]
[1721918854359,2.77906171,170.78,170.66,14.6484]
[1721918854562,20.0,170.79,170.62,14.6523]
[1721918854791,5.8582,170.7,170.64,5.8599]
[1721918854966,14.6417,170.75,170.65,5.8598]
[1721918855486,14.6417,170.75,170.66,5.8595]
[1721918855487,5.8575,170.72,170.66,5.8595]
[1721918855688,14.6417,170.75,170.6,14.6534]
[1721918855871,5.8593,170.67,170.6,14.6534]
[1721918856065,5.8599,170.65,170.59,5.8616]
[1721918856490,5.8604,170.64,170.58,5.8623]
[1721918857008,5.8599,170.65,170.59,14.6549]
[1721918857167,5.872,170.72,170.59,14.6549]
[1721918857369,5.872,170.72,170.62,5.8609]
[1721918857590,60.65,170.77,170.62,14.6517]
[1721918857798,46.522,170.77,170.62,14.6517]
[1721918858092,20.0,170.75,170.62,14.6517]
[1721918858391,14.6421,170.75,170.62,20.5123]
[1721918858592,14.6421,170.75,170.62,14.6517]
[1721918858970,14.6442,170.72,170.62,14.6517]
[1721918859176,14.6442,170.72,170.58,14.6555]
[1721918859399,5.8603,170.64,170.59,5.8619]
[1721918859700,5.8593,170.67,170.62,5.8609]
[1721918860000,5.8581,170.71,170.64,5.8602]
[1721918860194,8.64554659,170.76,170.65,5.8596]
[1721918860371,8.64554659,170.76,170.64,14.6502]
[1721918860699,5.8568,170.75,170.69,5.8584]
[1721918860994,5.8558,170.77,170.71,6.4251]
[1721918861205,5.8558,170.77,170.72,5.8574]
[1721918861500,5.8544,170.82,170.72,14.6436]
[1721918861684,5.8544,170.82,170.71,6.4251]
[1721918861685,5.8538,170.83,170.75,14.6411]
[1721918861881,14.631,170.87,170.75,14.6411]
[1721918862192,14.6335,170.85,170.72,14.6438]
[1721918862388,5.8544,170.81,170.75,20.4972]
[1721918862789,5.8548,170.8,170.75,20.4972]
[1721918862980,14.6335,170.85,170.75,14.6411]
[1721918862981,5.8545,170.81,170.75,14.6411]
[1721918863174,5.8541,170.82,170.76,5.8561]
[1721918863607,14.6335,170.85,170.76,5.8561]
[1721918863771,14.6335,170.85,170.72,14.6437]
[1721918864287,5.8538,170.83,170.78,5.8554]
[1721918864595,14.6301,170.88,170.79,5.855]
[1721918864897,14.6301,170.88,170.77,14.6387]
[1721918865106,5.8539,170.83,170.77,14.6387]
[1721918865420,2.89755932,170.89,170.73,20.499]
[1721918865421,5.8555,170.78,170.73,20.499]
[1721918865590,5.8551,170.8,170.74,5.8567]
[1721918865773,5.8551,170.79,170.74,5.8567]
[1721918865971,14.6328,170.85,170.76,14.6404]
[1721918866197,5.8537,170.84,170.77,5.8557]
[1721918866377,5.8537,170.84,170.78,5.8551]
[1721918866884,5.8537,170.84,170.79,5.8551]
[1721918867183,5.8537,170.84,170.76,14.6404]
[1721918867184,5.8537,170.83,170.76,14.6404]
[1721918867581,2.8807936,170.91,170.8,14.6368]
[1721918867783,29.2508,170.94,170.8,14.6368]
[1721918868001,14.6282,170.91,170.8,14.6368]
[1721918868377,5.8517,170.9,170.85,5.853]
[1721918868583,5.8517,170.9,170.81,15.9706]
[1721918868584,15.783,171.0,170.86,14.6318]
[1721918868778,14.6204,171.0,170.86,14.6318]
[1721918868976,5.872,171.01,170.87,5.852]
[1721918869229,29.2409,171.0,170.84,6.5755]
[1721918869392,29.2409,171.0,170.84,12.4287]
[1721918869393,5.8514,170.9,170.84,12.4287]
[1721918869591,5.852,170.89,170.84,6.5755]
[1721918869811,49.2409,171.0,170.84,6.5755]
[1721918869812,5.8521,170.88,170.84,6.5755]
[1721918870302,5.8517,170.89,170.84,6.5755]
[1721918870702,5.8514,170.9,170.84,12.4287]
[1721918871010,29.2409,171.0,170.85,14.6321]
[1721918871011,14.6226,170.97,170.85,14.6321]
[1721918871211,5.85,170.94,170.89,5.8514]
[1721918871411,29.2409,171.0,170.88,14.6296]
[1721918871719,5.8505,170.93,170.88,14.6296]
[1721918872011,14.6224,170.97,170.89,5.8516]
[1721918872012,5.85,170.94,170.89,5.8516]
[1721918872212,5.8496,170.95,170.88,14.6296]
[1721918872414,5.8503,170.93,170.88,14.6296]
[1721918872815,14.62,171.0,170.88,14.6296]
[1721918873319,5.8485,170.99,170.94,5.8497]
[1721918873501,14.614,171.07,170.95,14.6233]
[1721918873705,5.8475,171.02,170.96,5.849]
[1721918873909,5.8479,171.0,170.95,20.4729]
[1721918874103,5.8484,170.99,170.93,5.8501]
[1721918874302,14.6164,171.05,170.94,14.6247]
[1721918874500,5.8473,171.02,170.96,5.8489]
[1721918874703,5.8487,170.98,170.91,14.6273]
[1721918875013,5.8499,170.95,170.89,5.8516]
[1721918875210,14.6199,171.0,170.89,5.8516]
[1721918875211,5.8501,170.94,170.89,5.8516]
[1721918875907,5.8496,170.95,170.9,5.8513]
[1721918876423,5.8499,170.95,170.9,5.8513]
[1721918876627,5.85,170.94,170.89,5.8516]
[1721918876816,29.2463,170.97,170.84,21.2086]
[1721918877015,5.8511,170.91,170.84,21.2086]
[1721918877218,5.8511,170.91,170.86,5.8526]
[1721918877718,5.8514,170.9,170.85,5.853]
[1721918877923,14.6235,170.96,170.84,21.2086]
[1721918878317,5.8516,170.9,170.85,5.853]
[1721918878518,5.851,170.92,170.86,5.8525]
[1721918878713,5.851,170.92,170.84,21.2086]
[1721918878904,5.851,170.92,170.86,5.8526]
[1721918879102,14.6235,170.96,170.85,5.8529]
[1721918879103,5.851,170.91,170.85,5.8529]
[1721918879304,5.851,170.91,170.84,21.2086]
[1721918879305,5.8521,170.88,170.84,6.5755]
[1721918879716,14.6257,170.94,170.84,6.5755]
[1721918879930,5.8524,170.87,170.84,6.5755]
[1721918880309,14.6257,170.94,170.84,6.5755]
[1721918880511,5.8514,170.9,170.85,5.853]
[1721918880707,5.8518,170.89,170.84,21.2085]
[1721918880925,2.82950512,170.96,170.86,14.6311]
[1721918881103,5.8507,170.92,170.87,5.8523]
[1721918881307,14.6248,170.95,170.86,14.6311]
[1721918881507,14.6248,170.95,170.86,20.4838]
[1721918881726,5.851,170.92,170.86,20.4838]
[1721918881919,5.8512,170.91,170.86,14.6311]
[1721918882112,5.8518,170.89,170.84,6.5755]
[1721918882323,5.8524,170.87,170.84,6.5755]
[1721918882510,32.00873875,170.97,170.78,6.6288]
[1721918882511,20.0,170.92,170.78,6.6288]
[1721918882710,20.0,170.92,170.79,5.855]
[1721918882711,14.63,170.89,170.79,5.855]
[1721918883429,5.8534,170.84,170.79,5.855]
[1721918883641,5.8531,170.85,170.8,5.8547]
[1721918883818,20.0,170.92,170.78,6.6288]
[1721918884015,5.855,170.8,170.74,20.4988]
[1721918884220,5.855,170.8,170.75,5.8563]
[1721918884549,29.2603,170.88,170.76,14.6398]
[1721918884711,61.1005,170.91,170.76,14.6398]
[1721918884910,15.0391,170.89,170.76,14.6398]
[1721918885109,5.8543,170.82,170.77,5.8555]
[1721918885330,14.6315,170.87,170.76,14.6398]